bitfinex-derivatives/quotes_BTCF0:USTF0_20260107
["timestamp","ask_amount","ask_price","bid_price","bid_amount"]
[1767760645968,0.01924892,92763.0,92751.0,0.010788]
[1767760646965,0.01924892,92761.0,92741.0,0.010789]
[1767760647164,0.03003592,92764.0,92744.0,0.01929624]
[1767760647971,0.01924892,92764.0,92744.0,0.01929624]
[1767760648177,0.010787,92762.0,92750.0,0.010788]
[1767760649378,0.03003592,92764.0,92750.0,0.010788]
[1767760649985,0.03003592,92764.0,92751.0,0.010788]
[1767760650786,0.03003592,92764.0,92752.0,0.010788]
[1767760651189,0.09168,92766.0,92744.0,0.01929624]
[1767760651190,0.09168,92766.0,92747.0,0.03008424]
[1767760651487,0.09168,92766.0,92755.0,0.010788]
[1767760651684,0.09168,92766.0,92749.0,0.010788]
[1767760651884,0.09168,92766.0,92750.0,0.02816014]
[1767760652080,0.09142709,92770.0,92750.0,0.02816014]
[1767760652081,0.02834568,92769.0,92750.0,0.02816014]
[1767760652284,0.09172,92766.0,92750.0,0.02816014]
[1767760652991,0.09172,92766.0,92757.0,0.010787]
[1767760653490,0.09172,92766.0,92751.0,0.11390999]
[1767760653688,0.09172,92766.0,92752.0,0.01737214]
[1767760653993,0.09172,92769.0,92752.0,0.01737214]
[1767760654782,0.09172,92769.0,92760.0,0.010787]
[1767760656192,0.01755968,92768.0,92756.0,0.010787]
[1767760656386,0.02834568,92768.0,92753.0,0.010788]
[1767760656693,0.010786,92766.0,92753.0,0.010788]
[1767760656991,0.010787,92764.0,92750.0,0.010788]
[1767760657186,0.01755968,92765.0,92750.0,0.010788]
[1767760657486,0.09142709,92760.0,92750.0,0.010788]
[1767760657687,0.01755968,92765.0,92750.0,0.010788]
[1767760658294,0.010787,92763.0,92750.0,0.010788]
[1767760658489,0.02834668,92763.0,92750.0,0.010788]
[1767760658902,0.02834668,92763.0,92750.0,0.01071472]
[1767760660500,0.02834668,92763.0,92751.0,0.010788]
[1767760660701,0.09142709,92761.0,92751.0,0.010788]
[1767760660901,0.09142709,92761.0,92754.0,0.010788]
[1767760661091,0.10908319,92766.0,92754.0,0.010788]
[1767760661293,0.12664287,92766.0,92754.0,0.010788]
[1767760662402,0.10908319,92766.0,92754.0,0.010788]
[1767760662703,0.02834668,92765.0,92753.0,0.010788]
[1767760663002,0.010787,92764.0,92750.0,0.010788]
[1767760663301,0.010787,92763.0,92750.0,0.010788]
[1767760663502,0.010787,92763.0,92752.0,0.010788]
[1767760664303,0.01755968,92765.0,92752.0,0.010788]
[1767760665604,0.01755968,92765.0,92749.0,0.010788]
[1767760665802,0.01755968,92745.0,92737.0,0.01079]
[1767760666104,0.09829719,92746.0,92736.0,0.01079]
[1767760666303,0.01755968,92748.0,92736.0,0.01079]
[1767760668794,0.09142709,92750.0,92738.0,0.01079]
[1767760669606,0.09142709,92750.0,92735.0,0.01079]
[1767760670308,0.10898677,92750.0,92735.0,0.01079]
[1767760673404,0.02834768,92749.0,92735.0,0.01079]
[1767760674408,0.01755968,92748.0,92735.0,0.01079]
[1767760675810,0.01755968,92748.0,92737.0,0.01079]
[1767760676699,0.11585687,92748.0,92737.0,0.01079]
[1767760676905,0.09829719,92748.0,92737.0,0.01079]
[1767760677406,0.09142709,92750.0,92737.0,0.01079]
[1767760677713,0.09142709,92750.0,92739.0,0.010789]
[1767760679315,0.1087337,92750.0,92736.0,0.01079]
[1767760679617,0.10928939,92749.0,92736.0,0.01079]
[1767760679804,0.09198278,92747.0,92736.0,0.01079]
[1767760680506,0.010789,92745.0,92730.0,0.01079]
[1767760680708,0.010789,92745.0,92732.0,0.01079]
[1767760683116,0.01642104,92745.0,92727.0,0.01801982]
[1767760683310,0.01642104,92745.0,92717.0,0.00010039]
[1767760683311,0.01642104,92735.0,92722.0,0.010791]
[1767760683510,0.01642104,92735.0,92726.0,0.010791]
[1767760683707,0.09111746,92736.0,92725.0,0.010791]
[1767760683913,0.010789,92741.0,92725.0,0.010791]
[1767760684119,0.09111746,92742.0,92725.0,0.01639006]
[1767760684120,0.010789,92742.0,92725.0,0.01639006]
[1767760684311,0.010789,92742.0,92727.0,0.02718106]
[1767760684623,0.102509,92745.0,92731.0,0.01079]
[1767760684921,0.09172,92745.0,92733.0,0.01639006]
[1767760685115,0.09172,92745.0,92736.0,0.01079]
[1767760685615,0.01642104,92757.0,92744.0,0.010789]
[1767760685820,0.09172,92753.0,92741.0,0.010789]
[1767760686123,0.09172,92753.0,92743.0,0.010789]
[1767760686509,0.09172,92753.0,92741.0,0.010789]
[1767760686819,0.09172,92753.0,92743.0,0.010789]
[1767760687907,0.09172,92753.0,92741.0,0.010789]
[1767760688110,0.09172,92753.0,92736.0,0.11074078]
[1767760688520,0.09172,92753.0,92736.0,0.09435072]
[1767760689015,0.02720904,92751.0,92737.0,0.01079]
[1767760689214,0.02720904,92751.0,92732.0,0.09172]
[1767760689215,0.01642104,92747.0,92734.0,0.01079]
[1767760689412,0.1075385,92747.0,92734.0,0.01079]
[1767760689613,0.1075385,92747.0,92730.0,0.01079]
[1767760689815,0.1075385,92747.0,92732.0,0.01079]
[1767760692227,0.01642104,92746.0,92732.0,0.01079]
[1767760693216,0.01642104,92746.0,92734.0,0.01079]
[1767760693718,0.01642104,92745.0,92734.0,0.01079]
[1767760694720,0.01642104,92742.0,92728.0,0.09172]
[1767760695417,0.09111746,92743.0,92735.0,0.01079]
[1767760696115,0.1075385,92749.0,92735.0,0.01079]
[1767760696316,0.01642104,92747.0,92735.0,0.01079]
[1767760696826,0.01642104,92745.0,92735.0,0.01079]
[1767760697024,0.01642104,92745.0,92732.0,0.01079]
[1767760698228,0.09172,92753.0,92736.0,0.01639006]
[1767760698426,0.010788,92752.0,92736.0,0.02718006]
[1767760698641,0.102508,92753.0,92738.0,0.01079]
[1767760699626,0.11892904,92753.0,92735.0,0.01079]
[1767760699814,0.11892904,92753.0,92737.0,0.01079]
[1767760700013,0.01642104,92752.0,92737.0,0.01079]
[1767760700224,0.01642104,92750.0,92737.0,0.01079]
[1767760700625,0.010788,92749.0,92734.0,0.01079]
[1767760702228,0.10784813,92750.0,92736.0,0.01079]
[1767760702425,0.02720904,92750.0,92733.0,0.01079]
[1767760702629,0.010788,92748.0,92733.0,0.01079]
[1767760702829,0.01642104,92747.0,92733.0,0.01079]
[1767760703130,0.01642104,92747.0,92731.0,0.01079]
[1767760703331,0.01642104,92746.0,92731.0,0.01079]
[1767760704029,0.01642104,92745.0,92731.0,0.01079]
[1767760704226,0.01642104,92739.0,92728.0,0.010791]
[1767760704423,0.01642104,92737.0,92728.0,0.010791]
[1767760705635,0.09111746,92738.0,92728.0,0.010791]
[1767760706432,0.1075385,92738.0,92728.0,0.010791]
[1767760706832,0.01642104,92741.0,92728.0,0.010791]
[1767760707832,0.02721004,92741.0,92725.0,0.010791]
[1767760708229,0.01642104,92738.0,92725.0,0.010791]
[1767760708434,0.01642104,92737.0,92724.0,0.010791]
[1767760709431,0.09111746,92738.0,92724.0,0.010791]
[1767760709637,0.01079,92737.0,92724.0,0.010791]
[1767760710341,0.01079,92731.0,92717.0,0.00010039]
[1767760710642,0.1075385,92727.0,92717.0,1.991e-05]
[1767760711630,9.266e-05,92726.0,92717.0,1.991e-05]
[1767760713133,0.01654968,92724.0,92717.0,1.991e-05]
[1767760713736,0.01654968,92721.0,92717.0,1.991e-05]
[1767760714035,9.266e-05,92726.0,92717.0,1.991e-05]
[1767760714036,0.09105876,92718.0,92717.0,1.991e-05]
[1767760714725,0.010791,92725.0,92717.0,1.991e-05]
[1767760715342,0.010791,92723.0,92717.0,1.991e-05]
[1767760715839,0.010791,92722.0,92717.0,1.991e-05]
[1767760716141,0.01654968,92723.0,92717.0,1.991e-05]
[1767760716433,0.02734068,92723.0,92717.0,1.991e-05]
[1767760717340,0.11839944,92723.0,92717.0,1.991e-05]
[1767760717742,0.010791,92724.0,92717.0,1.991e-05]
[1767760718142,0.01654968,92725.0,92717.0,1.991e-05]
[1767760718944,0.10760844,92725.0,92704.0,0.02047694]
[1767760719242,0.11839944,92725.0,92704.0,0.02047694]
[1767760719443,0.10760844,92724.0,92704.0,0.02037694]
[1767760719634,0.10760844,92724.0,92709.0,0.010793]
[1767760719833,0.11839944,92724.0,92709.0,0.010793]
[1767760721244,0.10760844,92723.0,92709.0,0.010793]
[1767760721445,0.10760844,92723.0,92710.0,0.010793]
[1767760722140,0.10760844,92723.0,92711.0,0.010793]
[1767760722346,0.10760844,92723.0,92711.0,0.010743]
[1767760722547,0.09105876,92723.0,92713.0,0.010792]
[1767760726750,0.09181266,92726.0,92708.0,0.01659097]
[1767760727249,0.18287142,92726.0,92708.0,0.01659097]
[1767760727448,0.10760844,92725.0,92705.0,0.01659097]
[1767760727647,0.10760844,92725.0,92716.0,0.010792]
[1767760728350,0.01654968,92724.0,92713.0,0.010792]
[1767760728553,0.10760844,92724.0,92713.0,0.010792]
[1767760729851,0.10760844,92724.0,92705.0,0.01659097]
[1767760731254,0.10760844,92724.0,92714.0,0.010792]
[1767760732353,0.10760844,92722.0,92714.0,0.010792]
[1767760732547,0.09105876,92722.0,92714.0,0.010792]
[1767760734055,0.09105876,92722.0,92714.0,0.010742]
[1767760734252,0.10760844,92721.0,92711.0,0.010793]
[1767760734556,0.10760844,92719.0,92711.0,0.010793]
[1767760734745,0.10760844,92719.0,92712.0,0.010792]
[1767760734948,0.09105876,92719.0,92713.0,0.010792]
[1767760735257,0.09105876,92719.0,92702.0,0.10831097]
[1767760735258,0.09105876,92719.0,92715.0,0.010792]
[1767760736563,0.09105876,92719.0,92704.0,0.010793]
[1767760736872,0.09105876,92719.0,92715.0,0.010792]
[1767760737574,0.09105876,92719.0,92704.0,0.010793]
[1767760739456,0.09105876,92725.0,92715.0,0.010792]
[1767760739662,0.10836234,92726.0,92711.0,0.010793]
[1767760739663,0.10760844,92724.0,92711.0,0.010793]
[1767760739857,0.10260366,92726.0,92711.0,0.010793]
[1767760739858,0.10760844,92723.0,92711.0,0.010793]
[1767760741163,0.10760844,92723.0,92713.0,0.010792]
[1767760741557,0.1048814,92722.0,92713.0,0.010792]
[1767760743269,0.0901291,92722.0,92713.0,0.010792]
[1767760743466,0.1048814,92722.0,92713.0,0.010792]
[1767760743766,0.1048814,92722.0,92703.0,0.09176]
[1767760743970,0.0147523,92721.0,92703.0,0.09176]
[1767760744172,0.0147523,92721.0,92712.0,0.010792]
[1767760744968,0.0901291,92722.0,92712.0,0.010792]
[1767760745473,0.1048814,92722.0,92713.0,0.010792]
[1767760745974,0.1048814,92722.0,92710.0,0.010793]
[1767760746362,0.1048814,92722.0,92713.0,0.010792]
[1767760748772,0.1048814,92722.0,92703.0,0.09176]
[1767760748975,0.1048814,92722.0,92703.0,0.10650473]
[1767760749176,0.1048814,92722.0,92714.0,0.010792]
[1767760750872,0.1048814,92722.0,92712.0,0.010793]
[1767760751174,0.01554815,92721.0,92712.0,0.010793]
[1767760751768,0.01554815,92721.0,92703.0,0.10650473]
[1767760751769,0.01554815,92721.0,92713.0,0.010792]
[1767760753182,0.01554815,92721.0,92704.0,0.010794]
[1767760753183,0.01554815,92721.0,92710.0,0.010793]
[1767760753371,0.11187527,92721.0,92710.0,0.010793]
[1767760754266,0.11187527,92721.0,92711.0,0.010793]
[1767760755481,0.11187527,92721.0,92712.0,0.010792]
[1767760758483,0.11187527,92721.0,92710.0,0.010793]
[1767760758880,0.11187527,92720.0,92710.0,0.010793]
[1767760759183,0.09632712,92720.0,92710.0,0.010793]
[1767760759377,0.09632712,92720.0,92712.0,0.010793]
[1767760759684,0.11187527,92722.0,92712.0,0.010793]
[1767760760087,0.09632712,92722.0,92714.0,0.010792]
[1767760760682,0.11187527,92722.0,92714.0,0.010792]
[1767760760887,0.09632712,92720.0,92711.0,0.010793]
[1767760761075,0.11187527,92720.0,92711.0,0.010793]
[1767760762185,0.11187527,92720.0,92709.0,0.010793]
[1767760763288,0.09632712,92720.0,92709.0,0.010793]
[1767760763585,0.09632712,92720.0,92710.0,0.010793]
[1767760764287,0.09632712,92720.0,92703.0,0.10650473]
[1767760765087,0.09632712,92720.0,92713.0,0.010792]
[1767760767186,0.09632712,92718.0,92710.0,0.010793]
[1767760767884,0.09632712,92718.0,92711.0,0.010793]
[1767760768191,0.09632712,92718.0,92703.0,0.09176]
[1767760768192,0.11187527,92718.0,92710.0,0.010793]
[1767760768689,0.09632712,92718.0,92710.0,0.010793]
[1767760770386,0.09632712,92718.0,92703.0,0.09176]
[1767760772694,0.09632712,92718.0,92709.0,0.010793]
[1767760774994,0.010791,92723.0,92709.0,0.010793]
[1767760775187,0.10981049,92723.0,92712.0,0.010793]
[1767760776385,0.01421597,92722.0,92704.0,0.01432753]
[1767760776585,0.10981049,92722.0,92710.0,0.09149716]
[1767760777295,0.10981049,92720.0,92710.0,0.010793]
[1767760777487,0.10981049,92720.0,92710.0,0.10229016]
[1767760777987,0.09559452,92720.0,92710.0,0.10229016]
[1767760779399,0.09559452,92720.0,92710.0,0.010793]
[1767760781000,0.09559452,92720.0,92712.0,0.010793]
[1767760781197,0.09559452,92720.0,92710.0,0.09149716]
[1767760781400,0.09559452,92720.0,92711.0,0.010793]
[1767760781605,0.09559452,92725.0,92705.0,0.01432753]
[1767760781805,0.10981049,92725.0,92705.0,0.01432753]
[1767760782006,0.10981049,92725.0,92710.0,0.09149716]
[1767760782194,0.09559452,92731.0,92715.0,0.09149716]
[1767760782394,0.18735452,92731.0,92720.0,0.09149716]
[1767760782895,0.18735452,92731.0,92718.0,0.010792]
[1767760783299,0.09559452,92730.0,92718.0,0.010792]
[1767760783703,0.09559452,92730.0,92712.0,0.01432753]
[1767760784808,0.09559452,92730.0,92718.0,0.010792]
[1767760785195,0.09559452,92730.0,92720.0,0.010792]
[1767760786702,0.09559452,92730.0,92708.0,0.0989872]
[1767760786703,0.09559452,92718.0,92700.0,0.08464797]
[1767760786891,0.09149716,92710.0,92701.0,0.09176]
[1767760787207,0.09149716,92710.0,92696.0,0.09176]
[1767760787407,0.09149716,92720.0,92696.0,0.09176]
[1767760787600,0.010792,92716.0,92699.0,0.010794]
[1767760787807,0.09149716,92720.0,92699.0,0.010794]
[1767760788497,0.010792,92714.0,92699.0,0.010794]
[1767760788697,0.010793,92711.0,92696.0,0.102554]
[1767760788898,0.09149716,92710.0,92696.0,0.09176]
[1767760789096,0.00587963,92695.0,92675.0,0.11331473]
[1767760789308,0.00613971,92696.0,92677.0,0.01432753]
[1767760789510,0.00613971,92696.0,92676.0,0.08876753]
[1767760789708,0.00613971,92696.0,92680.0,0.09149716]
[1767760789905,0.01421597,92694.0,92676.0,0.08876753]
[1767760790106,0.09559452,92694.0,92680.0,0.010796]
[1767760791001,0.09559452,92694.0,92676.0,0.08876753]
[1767760791299,0.01421597,92692.0,92676.0,0.48876753]
[1767760791505,0.09559452,92693.0,92676.0,0.08876753]
[1767760791707,0.01421597,92692.0,92676.0,0.08876753]
[1767760791909,0.01421597,92692.0,92676.0,0.17359577]
[1767760792105,0.09559452,92693.0,92676.0,0.17359577]
[1767760792306,0.01421597,92693.0,92680.0,0.010796]
[1767760792512,0.01421597,92696.0,92682.0,0.010796]
[1767760792910,0.10981049,92700.0,92686.0,0.09149716]
[1767760793208,0.01421597,92698.0,92680.0,0.10229316]
[1767760793409,0.10981049,92697.0,92682.0,0.010796]
[1767760794304,0.01421597,92695.0,92682.0,0.010796]
[1767760794604,0.09559452,92696.0,92682.0,0.010796]
[1767760796214,0.09559452,92696.0,92684.0,0.010796]
[1767760797214,0.09559452,92677.0,92621.0,0.010803]
[1767760797400,0.09559452,92659.0,92621.0,0.05847286]
[1767760797599,0.10981049,92664.0,92640.0,0.09149716]
[1767760797804,0.053943,92750.0,92646.0,0.0108]
[1767760797805,0.10981049,92662.0,92646.0,0.0108]
[1767760798002,0.06070636,92705.0,92657.0,0.010799]
[1767760798211,1.37148,92704.0,92653.0,0.01432753]
[1767760798415,9.461e-05,92703.0,92660.0,0.09149716]
[1767760798609,0.010797,92678.0,92656.0,0.01432753]
[1767760798917,0.010797,92676.0,92656.0,0.01432753]
[1767760799113,0.09149716,92670.0,92649.0,0.02512753]
[1767760799409,0.09176,92669.0,92647.0,0.01432753]
[1767760799613,0.102558,92669.0,92648.0,0.01432753]
[1767760800709,0.10571313,92660.0,92639.0,0.11331473]
[1767760800915,0.01421597,92658.0,92641.0,0.01432753]
[1767760801114,0.09176,92664.0,92650.0,0.01432753]
[1767760801314,0.09176,92664.0,92650.0,0.10582469]
[1767760801820,0.09176,92664.0,92632.0,0.010802]
[1767760801821,0.010793,92706.0,92657.0,0.12168562]
[1767760802005,0.010794,92698.0,92673.0,0.010797]
[1767760802206,0.010795,92695.0,92672.0,0.0262134]
[1767760802406,0.09176,92694.0,92672.0,0.0262134]
[1767760802813,5.389e-05,92693.0,92672.0,0.0262134]
[1767760803017,5.389e-05,92693.0,92671.0,0.09547222]
[1767760803216,5.389e-05,92693.0,92672.0,0.010797]
[1767760803818,0.09278698,92692.0,92672.0,0.010797]
[1767760804919,0.09278698,92692.0,92677.0,0.010797]
[1767760805125,0.09181389,92693.0,92680.0,0.09149716]
[1767760805418,0.010793,92708.0,92683.0,0.10229316]
[1767760805718,0.010789,92744.0,92688.0,0.09149716]
[1767760805719,0.09176,92707.0,92688.0,0.09149716]
[1767760805912,0.09176,92706.0,92686.0,0.010796]
[1767760806310,0.09176,92706.0,92682.0,0.010796]
[1767760806710,0.010794,92704.0,92682.0,0.010796]
[1767760806911,0.010793,92712.0,92690.0,0.09149716]
[1767760807122,0.010793,92706.0,92690.0,0.09149716]
[1767760807320,0.010794,92702.0,92682.0,0.010796]
[1767760807711,0.102554,92702.0,92682.0,0.010796]
[1767760808110,0.10154596,92697.0,92675.0,0.19566313]
[1767760809214,0.10154596,92697.0,92677.0,0.010797]
[1767760810622,0.10154596,92697.0,92679.0,0.010796]
[1767760811422,0.10154596,92697.0,92680.0,0.09149716]
[1767760812021,0.10154596,92697.0,92679.0,0.010796]
[1767760812523,0.09075196,92697.0,92676.0,0.02639116]
[1767760812723,0.09075196,92697.0,92676.0,0.11949729]
[1767760813022,0.09075196,92697.0,92682.0,0.010796]
[1767760815122,0.00215753,92699.0,92680.0,0.09149716]
[1767760815321,0.00215753,92699.0,92680.0,0.11788832]
[1767760815824,0.00215753,92699.0,92680.0,0.02639116]
[1767760816028,0.010794,92698.0,92681.0,0.010796]
[1767760816725,0.010794,92698.0,92683.0,0.010796]
[1767760816925,0.00215753,92699.0,92683.0,0.010796]
[1767760817125,0.01295153,92699.0,92683.0,0.010796]
[1767760817327,0.00215753,92699.0,92682.0,0.010796]
[1767760818329,0.00215753,92699.0,92684.0,0.010796]
[1767760819924,0.010794,92698.0,92682.0,0.02639116]
[1767760820522,0.010794,92698.0,92681.0,0.10390213]
[1767760820717,0.010794,92698.0,92683.0,0.010796]
[1767760821428,0.010794,92698.0,92683.0,0.00863777]
[1767760821731,0.010794,92698.0,92681.0,0.09310613]
[1767760822032,0.01295153,92699.0,92683.0,0.010796]
[1767760822329,0.01295153,92699.0,92681.0,0.09310613]
[1767760823132,0.01295153,92699.0,92684.0,0.010796]
[1767760823634,0.00215753,92699.0,92684.0,0.010796]
[1767760824829,0.00215753,92699.0,92686.0,0.010796]
[1767760825029,0.09176,92717.0,92696.0,0.02639116]
[1767760825331,0.09176,92717.0,92700.0,0.02639116]
[1767760825522,0.010791,92723.0,92707.0,0.010793]
[1767760825725,0.09176,92722.0,92707.0,0.010793]
[1767760825925,0.4,92722.0,92700.0,0.11949729]
[1767760826232,0.010792,92721.0,92705.0,0.03718416]
[1767760826634,0.09075196,92726.0,92707.0,0.010793]
[1767760827929,0.09075196,92726.0,92705.0,0.11949729]
[1767760828135,0.010791,92726.0,92709.0,0.010793]
[1767760828633,0.09075196,92731.0,92709.0,0.11949729]
[1767760828836,0.010792,92722.0,92709.0,0.11949729]
[1767760829822,0.010792,92720.0,92709.0,0.11949729]
[1767760830231,0.09176,92730.0,92714.0,0.02639116]
[1767760830428,0.09176,92730.0,92706.0,0.010793]
[1767760830429,0.09075196,92742.0,92724.0,0.010791]
[1767760830634,0.09176,92741.0,92724.0,0.010791]
[1767760831026,0.010789,92745.0,92727.0,0.010791]
[1767760831233,0.010789,92743.0,92724.0,0.11949729]
[1767760831540,0.18517151,92746.0,92724.0,0.13028829]
[1767760832425,0.010789,92740.0,92726.0,0.1150393]
[1767760832625,0.09176,92746.0,92733.0,0.01079]
[1767760833040,0.010788,92749.0,92730.0,0.03491895]
[1767760833338,0.010788,92749.0,92733.0,0.1150393]
[1767760834039,0.010788,92749.0,92733.0,0.09091035]
[1767760835137,0.010789,92747.0,92733.0,0.09091035]
[1767760836041,0.010788,92750.0,92733.0,0.1150393]
[1767760836239,0.18517151,92753.0,92733.0,0.1150393]
[1767760836429,0.010789,92747.0,92733.0,0.1150393]
[1767760836632,0.010789,92742.0,92727.0,0.02412895]
[1767760836837,0.010789,92745.0,92730.0,0.02412895]
[1767760838041,0.010789,92743.0,92729.0,0.09091035]
[1767760839535,0.010789,92743.0,92726.0,0.1258303]
[1767760839842,0.010789,92743.0,92728.0,0.02412895]
[1767760840342,0.09341151,92752.0,92728.0,0.02412895]
[1767760840643,0.09341151,92750.0,92728.0,0.02412895]
[1767760840837,0.010789,92741.0,92728.0,0.02412895]
[1767760841341,0.010789,92744.0,92728.0,0.02412895]
[1767760842044,0.010789,92744.0,92730.0,0.02412895]
[1767760842243,0.010789,92744.0,92730.0,0.1150393]
[1767760843043,0.010789,92747.0,92730.0,0.1150393]
[1767760843639,0.010789,92743.0,92730.0,0.1150393]
[1767760844338,0.010789,92740.0,92730.0,0.1150393]
[1767760845737,0.010789,92743.0,92731.0,0.02412895]
[1767760845937,0.010789,92743.0,92731.0,0.1150393]
[1767760847653,0.010789,92746.0,92731.0,0.1150393]
[1767760849453,0.010789,92745.0,92731.0,0.1150393]
[1767760849648,0.010789,92745.0,92732.0,0.02412895]
[1767760850050,0.09176,92753.0,92732.0,0.02412895]
[1767760850348,0.09176,92753.0,92737.0,0.02412895]
[1767760850552,0.09176,92753.0,92740.0,0.02412895]
[1767760851055,0.010788,92750.0,92739.0,0.09091035]
[1767760852953,0.010788,92748.0,92739.0,0.09091035]
[1767760853252,0.09176,92753.0,92735.0,0.1150393]
[1767760853447,0.09176,92753.0,92736.0,0.02412895]
[1767760853649,0.010789,92744.0,92736.0,0.02412895]
[1767760854548,0.010789,92746.0,92736.0,0.02412895]
[1767760862654,0.09176,92753.0,92738.0,0.11579047]
[1767760862959,0.09176,92753.0,92740.0,0.09402229]
[1767760863353,0.010789,92748.0,92740.0,0.09402229]
[1767760864944,0.010789,92746.0,92740.0,0.09402229]
[1767760865144,0.010789,92745.0,92737.0,0.02176818]
[1767760865856,0.09813533,92752.0,92719.0,0.02176818]
[1767760866160,0.09813533,92739.0,92720.0,0.09172]
[1767760866354,0.01079,92732.0,92720.0,0.11348818]
[1767760866555,0.01079,92738.0,92720.0,0.11348818]
[1767760867349,0.01079,92738.0,92701.0,0.010794]
[1767760867350,0.09813533,92736.0,92703.0,0.02176818]
[1767760867556,0.010791,92725.0,92704.0,0.01630118]
[1767760867756,0.010791,92725.0,92709.0,0.010793]
[1767760867955,0.010791,92725.0,92710.0,0.09402229]
[1767760868462,0.010791,92727.0,92712.0,0.09402229]
[1767760869665,0.10419397,92735.0,92715.0,0.02176818]
[1767760869962,0.010791,92723.0,92715.0,0.02176818]
[1767760870967,0.010792,92721.0,92715.0,0.02176818]
[1767760871663,0.10187726,92732.0,92711.0,0.02176818]
[1767760871866,0.010792,92719.0,92711.0,0.02176818]
[1767760873266,0.010791,92722.0,92711.0,0.02176818]
[1767760873466,0.09813533,92732.0,92712.0,0.02176818]
[1767760874158,0.09813533,92732.0,92713.0,0.02176818]
[1767760874765,0.010791,92724.0,92713.0,0.02176818]
[1767760875462,0.00268025,92726.0,92704.0,0.01630118]
[1767760875664,0.10081558,92721.0,92704.0,0.01630118]
[1767760875965,0.010792,92718.0,92704.0,0.01630118]
[1767760876170,0.010792,92716.0,92704.0,0.01630118]
[1767760876668,0.010792,92720.0,92707.0,0.02176818]
[1767760876962,0.010792,92720.0,92709.0,0.02176818]
[1767760877157,0.09172,92727.0,92712.0,0.02176818]
[1767760877354,0.010792,92720.0,92712.0,0.02176818]
[1767760878465,0.010791,92723.0,92712.0,0.02176818]
[1767760878761,0.010792,92721.0,92712.0,0.02176818]
[1767760879267,0.010792,92718.0,92712.0,0.02176818]
[1767760879465,0.010792,92721.0,92712.0,0.02176818]
[1767760880765,0.09172,92727.0,92712.0,0.02176818]
[1767760881464,0.010792,92722.0,92712.0,0.02176818]
[1767760881665,0.09172,92727.0,92712.0,0.02176818]
[1767760881868,0.09172,92727.0,92715.0,0.02176818]
[1767760882769,0.01079,92733.0,92719.0,0.010792]
[1767760882975,0.010791,92730.0,92718.0,0.02176818]
[1767760883178,0.10251,92733.0,92721.0,0.02176818]
[1767760883469,0.010789,92741.0,92722.0,0.02176818]
[1767760883470,0.09172,92736.0,92722.0,0.02176818]
[1767760883672,0.010791,92730.0,92722.0,0.02176818]
[1767760884076,0.010791,92729.0,92721.0,0.09402229]
[1767760885377,0.010791,92729.0,92719.0,0.02176818]
[1767760886073,0.09172,92736.0,92719.0,0.02176818]
[1767760886074,0.09147856,92730.0,92719.0,0.02176818]
[1767760886270,0.010791,92724.0,92710.0,0.010793]
[1767760886472,0.010791,92724.0,92710.0,0.03256118]
[1767760887177,0.01101314,92729.0,92710.0,0.03256118]
[1767760887571,0.010791,92723.0,92710.0,0.03256118]
[1767760888474,0.18961389,92730.0,92706.0,0.09402229]
[1767760888475,0.10861917,92728.0,92708.0,0.010793]
[1767760888680,0.10861917,92728.0,92706.0,0.11579047]
[1767760888681,0.010792,92718.0,92707.0,0.09176]
[1767760889275,0.09813533,92716.0,92699.0,0.01295153]
[1767760889483,0.09147856,92710.0,92699.0,0.00215753]
[1767760889681,0.010793,92708.0,92699.0,0.00215753]
[1767760890081,0.09147856,92710.0,92699.0,0.00215753]
[1767760890284,0.010793,92711.0,92699.0,0.00215753]
[1767760890777,0.010793,92709.0,92699.0,0.00215753]
[1767760890971,0.010793,92707.0,92699.0,0.00215753]
[1767760894282,0.10227156,92710.0,92699.0,0.00215753]
[1767760894481,0.010793,92710.0,92699.0,0.00215753]
[1767760894872,0.010793,92710.0,92699.0,0.02688646]
[1767760895373,0.010793,92711.0,92699.0,0.02688646]
[1767760895880,0.010793,92709.0,92699.0,0.02688646]
[1767760896081,0.010793,92708.0,92699.0,0.02688646]
[1767760896268,0.010793,92708.0,92699.0,0.00215753]
[1767760899282,0.09147856,92710.0,92699.0,0.00215753]
[1767760899484,0.010793,92707.0,92699.0,0.00215753]
[1767760899986,0.010793,92709.0,92699.0,0.00215753]
[1767760901788,0.09147856,92710.0,92699.0,0.00215753]
[1767760902190,0.010793,92709.0,92699.0,0.00215753]
[1767760902489,0.010792,92713.0,92700.0,0.02472893]
[1767760902789,0.010793,92712.0,92700.0,0.02472893]
[1767760903286,0.09073281,92719.0,92700.0,0.02472893]
[1767760903488,0.010793,92710.0,92700.0,0.02472893]
[1767760904193,0.010792,92713.0,92700.0,0.02472893]
[1767760904387,0.09073281,92725.0,92707.0,0.02472893]
[1767760904582,0.09176,92724.0,92707.0,0.02472893]
[1767760905290,0.010792,92720.0,92707.0,0.02472893]
[1767760908992,0.010792,92720.0,92706.0,0.010793]
[1767760909994,0.010792,92718.0,92703.0,0.03552293]
[1767760910394,0.010792,92718.0,92703.0,0.010794]
[1767760912995,0.010792,92716.0,92703.0,0.010794]
[1767760914782,0.010792,92718.0,92703.0,0.010794]
[1767760916395,0.010792,92718.0,92703.0,0.03552293]
[1767760916992,0.010792,92718.0,92704.0,0.010793]
[1767760918693,0.010792,92717.0,92703.0,0.02472893]
[1767760918900,0.010792,92717.0,92704.0,0.010794]
[1767760919497,0.09655127,92725.0,92704.0,0.02148942]
[1767760919692,0.09176,92724.0,92706.0,0.02148942]
[1767760919893,0.09176,92724.0,92708.0,0.03228242]
[1767760920995,0.09655127,92731.0,92714.0,0.11296798]
[1767760921300,0.09176,92736.0,92729.0,0.010791]
[1767760921699,0.09176,92736.0,92720.0,0.09147856]
[1767760921700,0.010789,92747.0,92732.0,0.02152972]
[1767760921892,0.09176,92750.0,92739.0,0.02152972]
[1767760922088,0.102548,92751.0,92739.0,0.02152972]
[1767760922403,0.010788,92749.0,92733.0,0.02152972]
[1767760922595,0.010789,92747.0,92733.0,0.02152972]
[1767760923803,0.102548,92751.0,92733.0,0.03231972]
[1767760924002,0.010788,92749.0,92733.0,0.03231972]
[1767760924211,0.010788,92749.0,92733.0,0.02152972]
[1767760925002,0.010788,92749.0,92735.0,0.02152972]
[1767760925201,0.010788,92748.0,92732.0,0.02152972]
[1767760926011,0.19510453,92751.0,92732.0,0.02152972]
[1767760926211,0.010788,92749.0,92732.0,0.02152972]
[1767760928511,0.010788,92749.0,92733.0,0.01079]